bitfinex/quotes_BTCUSD_20241102
["timestamp","ask_amount","ask_price","bid_price","bid_amount"]
[1730554288047,0.36288461,69618.0,69617.0,0.51662925]
[1730554288272,0.36188461,69618.0,69617.0,0.51662925]
[1730554288535,0.36288461,69618.0,69617.0,0.51862925]
[1730554288958,0.36188461,69618.0,69617.0,0.51662925]
[1730554289387,0.32944055,69618.0,69617.0,0.51662925]
[1730554289821,0.33044055,69618.0,69617.0,0.51662925]
[1730554290027,0.32944055,69618.0,69617.0,0.51662925]
[1730554290466,0.33044055,69618.0,69617.0,0.51662925]
[1730554290704,0.61598098,69618.0,69617.0,0.177624]
[1730554290925,0.69788962,69618.0,69617.0,0.177624]
[1730554291205,0.71934317,69618.0,69617.0,0.177624]
[1730554293884,0.73007078,69618.0,69617.0,0.177624]
[1730554294524,0.72907078,69618.0,69617.0,0.177624]
[1730554294742,0.72807078,69618.0,69617.0,0.177624]
[1730554294985,0.71934317,69618.0,69617.0,0.179624]
[1730554295614,0.55275751,69618.0,69617.0,0.179624]
[1730554298010,0.55278646,69618.0,69617.0,0.179624]
[1730554298233,0.45223846,69618.0,69617.0,0.280174]
[1730554298459,0.34886001,69618.0,69617.0,0.41862925]
[1730554301085,0.34386001,69618.0,69617.0,0.41862925]
[1730554301511,0.34886001,69618.0,69617.0,0.41862925]
[1730554301722,0.33544055,69618.0,69617.0,0.41862925]
[1730554301929,0.34887235,69618.0,69617.0,0.41862925]
[1730554302345,0.34387235,69618.0,69617.0,0.41862925]
[1730554302545,0.38375959,69618.0,69617.0,0.41862925]
[1730554304338,0.37875959,69618.0,69617.0,0.41862925]
[1730554304547,0.33044055,69618.0,69617.0,0.51862925]
[1730554307286,0.32544055,69618.0,69617.0,0.51862925]
[1730554308659,0.32444055,69618.0,69617.0,0.51662925]
[1730554309109,0.32544055,69618.0,69617.0,0.51862925]
[1730554310016,0.32444055,69618.0,69617.0,0.51862925]
[1730554310450,0.32544055,69618.0,69617.0,0.52862925]
[1730554310682,0.32544055,69618.0,69617.0,0.52662925]
[1730554310683,0.32444055,69618.0,69617.0,0.52662925]
[1730554310912,0.32344055,69618.0,69617.0,0.51662925]
[1730554311147,0.32883841,69618.0,69617.0,0.53062925]
[1730554311354,0.32544055,69618.0,69617.0,0.54462925]
[1730554311573,0.32444055,69618.0,69617.0,0.53062925]
[1730554311996,0.32444055,69618.0,69617.0,0.54462925]
[1730554311997,0.32544055,69618.0,69617.0,0.54462925]
[1730554313149,0.32544055,69618.0,69617.0,0.56762925]
[1730554313875,0.14734055,69618.0,69617.0,0.56762925]
[1730554314083,0.000822,69624.0,69623.0,0.397441]
[1730554314351,0.000822,69624.0,69623.0,0.70248191]
[1730554315046,0.431712,69624.0,69623.0,0.70248191]
[1730554315275,0.21508923,69634.0,69633.0,0.274427]
[1730554315503,0.21508923,69641.0,69640.0,0.200516]
[1730554315734,0.21508923,69641.0,69640.0,0.41637125]
[1730554315940,0.43078,69641.0,69640.0,0.41637125]
[1730554316609,0.43078,69641.0,69640.0,0.53587125]
[1730554317252,0.43178,69641.0,69640.0,0.54687125]
[1730554317692,0.43178,69641.0,69640.0,0.53587125]
[1730554317693,0.43078,69641.0,69640.0,0.53587125]
[1730554317918,0.43178,69641.0,69640.0,0.54987125]
[1730554318180,0.43178,69641.0,69640.0,0.55787125]
[1730554318395,0.43078,69641.0,69640.0,0.54387125]
[1730554318602,0.43078,69641.0,69640.0,0.53587125]
[1730554319060,0.43078,69641.0,69640.0,0.54987125]
[1730554319746,0.43078,69641.0,69640.0,0.52687125]
[1730554319959,0.43178,69641.0,69640.0,0.44437125]
[1730554320172,0.43078,69641.0,69640.0,0.43037125]
[1730554320418,0.43578,69641.0,69640.0,0.43037125]
[1730554320870,0.43578,69641.0,69640.0,0.35297125]
[1730554321091,0.43578,69641.0,69640.0,0.33897125]
[1730554321546,0.43578,69641.0,69640.0,0.36697125]
[1730554321794,0.43578,69641.0,69640.0,0.35297125]
[1730554323349,0.43678,69641.0,69640.0,0.36697125]
[1730554324212,0.43178,69641.0,69640.0,0.36697125]
[1730554325802,0.432602,69641.0,69640.0,0.36697125]
[1730554326491,0.437602,69641.0,69640.0,0.36697125]
[1730554328961,0.432602,69641.0,69640.0,0.36697125]
[1730554330391,0.4818622,69641.0,69640.0,0.36697125]
[1730554330799,0.437602,69641.0,69640.0,0.36697125]
[1730554331463,0.45100533,69641.0,69640.0,0.33897125]
[1730554331709,0.45000533,69641.0,69640.0,0.33897125]
[1730554331929,0.437602,69641.0,69640.0,0.35797125]
[1730554333515,0.436602,69641.0,69640.0,0.34697125]
[1730554333760,0.436602,69641.0,69640.0,0.35297125]
[1730554333997,0.437602,69641.0,69640.0,0.35297125]
[1730554334215,0.436602,69641.0,69640.0,0.34897125]
[1730554334424,0.437602,69641.0,69640.0,0.36097125]
[1730554334876,0.436602,69641.0,69640.0,0.34897125]
[1730554335090,0.432602,69641.0,69640.0,0.36297125]
[1730554335319,0.432602,69641.0,69640.0,0.53687125]
[1730554335759,0.432602,69641.0,69640.0,0.55987125]
[1730554336430,0.431602,69641.0,69640.0,0.54587125]
[1730554337359,0.432602,69641.0,69640.0,0.54987125]
[1730554337565,0.432602,69641.0,69640.0,0.56187125]
[1730554337778,0.431602,69641.0,69640.0,0.54787125]
[1730554337993,0.432602,69641.0,69640.0,0.56187125]
[1730554338204,0.432602,69641.0,69640.0,0.54987125]
[1730554338410,0.432602,69641.0,69640.0,0.56387125]
[1730554339036,0.432602,69641.0,69640.0,0.59259125]
[1730554342141,0.432602,69641.0,69640.0,0.67871125]
[1730554343229,0.431602,69641.0,69640.0,0.66471125]
[1730554343691,0.432602,69641.0,69640.0,0.67871125]
[1730554343913,0.431602,69641.0,69640.0,0.65071125]
[1730554344158,0.4747622,69641.0,69640.0,0.53587125]
[1730554344397,0.432602,69641.0,69640.0,0.56387125]
[1730554344607,0.432602,69641.0,69640.0,1.04987125]
[1730554345387,0.432602,69641.0,69640.0,1.03587125]
[1730554345601,0.432602,69641.0,69640.0,1.04987125]
[1730554346025,0.432602,69641.0,69640.0,1.06387125]
[1730554346267,0.431602,69641.0,69640.0,1.04987125]
[1730554346738,0.431602,69641.0,69640.0,1.06387125]
[1730554353352,0.431602,69641.0,69640.0,0.76697125]
[1730554354829,0.431602,69641.0,69640.0,0.86697125]
[1730554355500,0.431602,69641.0,69640.0,0.88997125]
[1730554355718,0.431602,69641.0,69640.0,1.06557125]
[1730554366258,0.431602,69641.0,69640.0,0.97287125]
[1730554372338,0.431602,69641.0,69640.0,1.27503361]
[1730554372545,0.431602,69641.0,69640.0,1.2331837]
[1730554372750,0.431602,69641.0,69640.0,1.31888353]
[1730554372938,0.431602,69641.0,69640.0,1.2331837]
[1730554373152,0.431602,69641.0,69640.0,1.2191837]
[1730554374400,0.431602,69641.0,69640.0,1.2331837]
[1730554375296,0.431602,69641.0,69640.0,1.9171837]
[1730554375524,0.431602,69641.0,69640.0,1.9191837]
[1730554375751,0.431602,69641.0,69640.0,1.9331837]
[1730554376925,0.402883,69641.0,69640.0,1.9331837]
[1730554377164,0.288007,69641.0,69640.0,2.03332434]
[1730554377605,0.288007,69641.0,69640.0,2.03329694]
[1730554377808,0.288007,69641.0,69640.0,1.94761833]
[1730554378249,0.288007,69641.0,69640.0,1.93361833]
[1730554378464,0.288007,69641.0,69640.0,1.93161833]
[1730554379159,0.288007,69641.0,69640.0,1.94761833]
[1730554379821,0.288007,69641.0,69640.0,2.03330998]
[1730554380256,0.288007,69641.0,69640.0,2.02830998]
[1730554380465,0.288007,69641.0,69640.0,1.94061833]
[1730554380676,0.288007,69641.0,69640.0,1.89095854]
[1730554380904,0.288007,69641.0,69640.0,1.89595854]
[1730554381317,0.288007,69641.0,69640.0,1.74891771]
[1730554381557,0.288007,69641.0,69640.0,1.58305854]
[1730554381984,0.288007,69641.0,69640.0,0.88305854]
[1730554382420,0.288007,69641.0,69640.0,0.80015854]
[1730554382685,0.288007,69641.0,69640.0,0.89569125]
[1730554382914,0.288007,69641.0,69640.0,0.86697125]
[1730554383382,0.288007,69641.0,69640.0,0.76697125]
[1730554384690,0.288007,69641.0,69640.0,0.89161525]
[1730554384908,0.288007,69641.0,69640.0,0.86361525]
[1730554385341,0.288007,69641.0,69640.0,0.87761525]
[1730554385771,0.288007,69641.0,69640.0,0.95491525]
[1730554386454,0.288007,69641.0,69640.0,0.96891525]
[1730554388015,0.288007,69641.0,69640.0,0.95491525]
[1730554388464,0.288007,69641.0,69640.0,0.98291525]
[1730554388691,0.288007,69641.0,69640.0,0.95491525]
[1730554388946,0.288007,69641.0,69640.0,0.94091525]
[1730554389159,0.288007,69641.0,69640.0,0.96891525]
[1730554390652,0.288007,69641.0,69640.0,0.89161525]
[1730554394013,0.288007,69641.0,69640.0,0.92033525]
[1730554396401,0.288007,69641.0,69640.0,0.99763525]
[1730554397120,0.288007,69641.0,69640.0,1.13997194]
[1730554397361,0.288007,69641.0,69640.0,1.22570964]
[1730554397784,0.288007,69641.0,69640.0,1.13997194]
[1730554398046,0.288007,69641.0,69640.0,1.22617194]
[1730554398698,0.288007,69641.0,69640.0,1.33334407]
[1730554398910,0.288007,69641.0,69640.0,1.30462407]
[1730554399142,0.288007,69641.0,69640.0,1.29062407]
[1730554399562,0.288007,69641.0,69640.0,1.99062407]
[1730554399787,0.288007,69641.0,69640.0,2.00462407]
[1730554400002,0.288007,69641.0,69640.0,1.99062407]
[1730554400481,0.288007,69641.0,69640.0,2.00662407]
[1730554400689,0.288007,69641.0,69640.0,1.89745194]
[1730554400897,0.288007,69641.0,69640.0,1.88345194]
[1730554401104,0.288007,69641.0,69640.0,1.89745194]
[1730554401738,0.288007,69641.0,69640.0,1.99062407]
[1730554401966,0.288007,69641.0,69640.0,1.98316609]
[1730554402191,0.288007,69641.0,69640.0,1.89745194]
[1730554402402,0.288007,69641.0,69640.0,1.85281525]
[1730554402611,0.288007,69641.0,69640.0,1.83881525]
[1730554403502,0.288007,69641.0,69640.0,1.85281525]
[1730554403726,0.288007,69641.0,69640.0,1.96175359]
[1730554403931,0.288007,69641.0,69640.0,1.89746196]
[1730554404134,0.288007,69641.0,69640.0,1.96175487]
[1730554404414,0.288007,69641.0,69640.0,1.86405487]
[1730554404838,0.288007,69641.0,69640.0,1.16405487]
[1730554405093,0.288007,69641.0,69640.0,0.76861525]
[1730554406181,0.288007,69641.0,69640.0,0.85481525]
[1730554406407,0.288007,69641.0,69640.0,0.86861525]
[1730554407728,0.288007,69641.0,69640.0,0.89161525]
[1730554407883,0.288007,69641.0,69640.0,0.87761525]
[1730554408286,0.288007,69641.0,69640.0,0.89161525]
[1730554408688,0.288007,69641.0,69640.0,0.87761525]
[1730554408853,0.288007,69641.0,69640.0,0.90633525]
[1730554409054,0.288007,69641.0,69640.0,0.92033525]
[1730554412908,0.3168077,69641.0,69640.0,0.89733525]
[1730554413071,0.51385358,69641.0,69640.0,0.69681925]
[1730554413264,0.51385358,69641.0,69640.0,0.79733525]
[1730554413639,0.48505288,69641.0,69640.0,0.79733525]
[1730554413837,0.48505288,69641.0,69640.0,0.76861525]
[1730554414241,0.48505288,69641.0,69640.0,0.76809925]
[1730554415111,0.48505288,69641.0,69640.0,0.86861525]
[1730554415419,0.48005288,69641.0,69640.0,0.86861525]
[1730554415778,0.30145288,69641.0,69640.0,0.86861525]
[1730554415979,0.30145288,69641.0,69640.0,0.89161525]
[1730554420727,0.288007,69641.0,69640.0,0.89161525]
[1730554420960,0.30144701,69641.0,69640.0,0.89161525]
[1730554422634,0.39944701,69641.0,69640.0,0.86861525]
[1730554425134,0.30144701,69641.0,69640.0,0.86861525]
[1730554431096,0.30144701,69641.0,69640.0,0.89161525]
[1730554431571,0.288007,69641.0,69640.0,0.89161525]
[1730554431790,0.30145606,69641.0,69640.0,0.89161525]
[1730554433696,0.288007,69641.0,69640.0,0.89161525]
[1730554435825,0.30146429,69641.0,69640.0,0.89161525]
[1730554436996,0.30146429,69641.0,69640.0,0.89606521]
[1730554437998,0.288007,69641.0,69640.0,0.89606521]
[1730554444102,0.288007,69641.0,69640.0,0.92478521]
[1730554445951,0.288007,69641.0,69640.0,1.14086423]
[1730554446127,0.288007,69641.0,69640.0,1.22656714]
[1730554446354,0.288007,69641.0,69640.0,1.14086423]
[1730554446526,0.288007,69641.0,69640.0,1.24799678]
[1730554446727,0.288007,69641.0,69640.0,1.14286423]
[1730554447395,0.288007,69641.0,69640.0,1.24798815]
[1730554447623,0.288007,69641.0,69640.0,1.03376423]
[1730554447833,0.288007,69641.0,69640.0,0.85101427]
[1730554448038,0.288007,69641.0,69640.0,0.92931143]
[1730554448317,0.288007,69641.0,69640.0,0.79161525]
[1730554448514,0.288007,69641.0,69640.0,0.85591241]
[1730554448741,0.288007,69641.0,69640.0,0.92198411]
[1730554448971,0.30145312,69641.0,69640.0,0.77761525]
[1730554449117,0.30145312,69641.0,69640.0,0.86361525]
[1730554449323,0.30145312,69641.0,69640.0,0.87761525]
[1730554449939,0.288007,69641.0,69640.0,0.89161525]
[1730554450384,0.30145378,69641.0,69640.0,0.89161525]
[1730554450597,0.30145378,69641.0,69640.0,0.90561525]
[1730554451743,0.30145378,69641.0,69640.0,0.88261525]
[1730554452774,0.39875378,69641.0,69640.0,0.88261525]
[1730554453340,0.42026983,69641.0,69640.0,0.88261525]
[1730554455119,0.30645378,69641.0,69640.0,0.88261525]
[1730554455984,0.30145378,69641.0,69640.0,0.88261525]
[1730554456828,0.288007,69641.0,69640.0,0.88261525]
[1730554457036,0.30145411,69641.0,69640.0,0.88261525]
[1730554460472,0.30145447,69641.0,69640.0,0.88261525]
[1730554464483,0.43099992,69641.0,69640.0,0.88261525]
[1730554464665,0.45751747,69641.0,69640.0,0.88261525]
[1730554465178,0.47096622,69641.0,69640.0,0.88261525]
[1730554465376,0.44032077,69641.0,69640.0,0.88261525]
[1730554467563,0.44031997,69641.0,69640.0,0.88261525]
[1730554468603,0.34141997,69641.0,69640.0,0.88261525]
[1730554471010,0.31452274,69641.0,69640.0,0.88261525]
[1730554471255,0.32797008,69641.0,69640.0,0.88261525]
[1730554471430,0.34141742,69641.0,69640.0,0.88261525]
[1730554474230,0.34141742,69641.0,69640.0,0.78209925]
[1730554474433,0.34141742,69641.0,69640.0,0.81081925]
[1730554474434,0.57885809,69641.0,69640.0,0.81081925]
[1730554474651,0.59681758,69641.0,69640.0,0.543644]
[1730554474831,0.62731444,69641.0,69640.0,0.543644]
[1730554475045,0.6488335,69641.0,69640.0,0.543644]
[1730554475256,0.65959349,69641.0,69640.0,0.543644]
[1730554475472,0.68200648,69641.0,69640.0,0.543644]
[1730554475678,0.72077574,69641.0,69640.0,0.543644]
[1730554475888,0.72077574,69641.0,69640.0,0.515644]
[1730554476109,0.72077574,69641.0,69640.0,0.015644]
[1730554476329,0.69836275,69641.0,69640.0,0.029644]
[1730554476534,0.69836275,69641.0,69640.0,0.015644]
[1730554476935,0.72077574,69641.0,69640.0,0.011644]
[1730554477149,0.72077574,69641.0,69640.0,0.019644]
[1730554477393,0.72077574,69641.0,69640.0,0.009644]
[1730554477632,0.69836275,69641.0,69640.0,0.010644]
[1730554477888,0.69835932,69641.0,69640.0,0.010644]
[1730554478101,0.69835947,69641.0,69640.0,0.017644]
[1730554478339,0.72077246,69641.0,69640.0,0.017644]
[1730554478553,0.72076935,69641.0,69640.0,0.017644]
[1730554479221,0.69835636,69641.0,69640.0,0.017644]
[1730554479431,0.69834405,69641.0,69640.0,0.017644]
[1730554479636,0.72074892,69641.0,69640.0,0.017644]
[1730554480487,0.69834405,69641.0,69640.0,0.017644]
[1730554480700,0.69833952,69641.0,69640.0,0.017644]
[1730554481572,0.69831572,69641.0,69640.0,0.017644]
[1730554483740,0.69830864,69641.0,69640.0,0.017644]
[1730554484156,0.72270829,69641.0,69640.0,0.017644]
[1730554484788,0.72070829,69641.0,69640.0,0.017644]
[1730554484991,0.69830864,69641.0,69640.0,0.017644]
[1730554485670,0.72069848,69641.0,69640.0,0.017644]
[1730554488049,0.69830864,69641.0,69640.0,0.017644]
[1730554488475,0.72067764,69641.0,69640.0,0.017644]
[1730554488679,0.6982878,69641.0,69640.0,0.017644]
[1730554491796,0.61944089,69641.0,69640.0,0.017644]
[1730554492008,0.69825535,69641.0,69640.0,0.017644]
[1730554492402,0.62305535,69641.0,69640.0,0.017644]
[1730554493133,0.62505535,69641.0,69640.0,0.017644]
[1730554493551,0.66802756,69641.0,69640.0,0.017644]
[1730554493961,0.66602756,69641.0,69640.0,0.017644]
[1730554494523,0.66601111,69641.0,69640.0,0.017644]
[1730554495385,0.61539126,69641.0,69640.0,0.017644]
[1730554495592,0.74790409,69641.0,69640.0,0.017644]
[1730554495796,0.70494833,69641.0,69640.0,0.017644]
[1730554495963,0.74790409,69641.0,69640.0,0.017644]
[1730554496162,0.74990409,69641.0,69640.0,0.017644]
[1730554496449,0.74990409,69641.0,69640.0,0.008644]
[1730554496662,0.74990409,69641.0,69640.0,0.001644]
[1730554497523,0.70694833,69641.0,69640.0,0.001644]
[1730554498202,0.62813411,69641.0,69640.0,0.001644]
[1730554498409,0.63711631,69641.0,69640.0,0.001644]
[1730554498825,0.67203059,69641.0,69640.0,0.001644]
[1730554499047,0.70694487,69641.0,69640.0,0.001644]
[1730554499256,0.67379125,69641.0,69640.0,0.001644]
[1730554499464,0.65230554,69641.0,69640.0,0.001644]
[1730554500295,0.8186412,69641.0,69640.0,0.001644]
[1730554500501,0.67381219,69641.0,69640.0,0.001644]
[1730554500710,0.67381219,69641.0,69634.0,0.001644]
[1730554500711,0.37075966,69635.0,69634.0,0.001644]
[1730554500922,0.87216007,69635.0,69634.0,0.001644]
[1730554501120,0.92681375,69635.0,69634.0,0.001644]
[1730554501323,0.92682082,69635.0,69634.0,0.001644]
[1730554502259,1.17123334,69635.0,69634.0,0.005644]
[1730554502501,1.08535042,69635.0,69634.0,0.011644]
[1730554502725,1.17122352,69635.0,69634.0,0.011644]
[1730554502987,1.08535042,69635.0,69634.0,0.007644]
[1730554503220,0.92681848,69635.0,69634.0,0.002644]
[1730554503436,1.17114887,69635.0,69634.0,0.002644]
[1730554503636,1.17314887,69635.0,69634.0,0.003644]
[1730554504527,1.08727577,69635.0,69634.0,0.002644]
[1730554504733,1.17314887,69635.0,69634.0,0.003644]
[1730554505149,1.08727577,69635.0,69634.0,0.003644]
[1730554505394,0.92881628,69635.0,69634.0,0.003644]
[1730554506061,0.62410613,69635.0,69634.0,0.003644]
[1730554506284,0.48929245,69635.0,69634.0,0.003644]
[1730554506487,0.41114618,69635.0,69634.0,0.083344]
[1730554506731,0.37620043,69635.0,69634.0,0.083344]
[1730554506958,0.38872707,69635.0,69634.0,0.083344]
[1730554507143,0.45999295,69635.0,69634.0,0.083344]
[1730554507375,0.45299295,69635.0,69634.0,0.081344]
[1730554507585,0.45799295,69635.0,69634.0,0.081344]
[1730554507787,0.45799295,69635.0,69634.0,0.082344]
[1730554508673,0.37098577,69635.0,69634.0,0.184869]
[1730554508873,0.37098577,69635.0,69634.0,0.183869]
[1730554509094,0.37098577,69635.0,69634.0,0.181869]
[1730554509095,0.34950316,69635.0,69634.0,0.181869]
[1730554509319,0.34950316,69635.0,69634.0,0.187869]
[1730554509524,0.34950316,69635.0,69634.0,0.183869]
[1730554509744,0.04550212,69634.0,69619.0,0.092]
[1730554509955,0.17133566,69625.0,69624.0,0.31508923]
[1730554510172,0.21967153,69625.0,69624.0,0.21508923]
[1730554510402,0.21967153,69625.0,69617.0,0.31671323]
[1730554510403,0.005,69618.0,69617.0,0.31671323]
[1730554510664,0.03990924,69618.0,69617.0,0.55571748]
[1730554510886,0.34052607,69618.0,69617.0,0.34062825]
[1730554511962,0.34052607,69618.0,69617.0,0.35362825]
[1730554512379,0.34052607,69618.0,69617.0,0.24062825]
[1730554512756,0.34052607,69618.0,69617.0,0.26362825]
[1730554512978,0.38513288,69618.0,69617.0,0.26362825]
[1730554513209,0.38513288,69618.0,69617.0,0.024624]
[1730554513435,0.43733981,69618.0,69617.0,0.024624]
[1730554513653,0.4857043,69618.0,69617.0,0.024624]
[1730554513872,0.51794967,69618.0,69617.0,0.024624]
[1730554514071,0.52294967,69618.0,69617.0,0.024624]
[1730554514385,0.4313852,69618.0,69617.0,0.024624]
[1730554514591,0.53193187,69618.0,69617.0,0.024624]
[1730554516267,0.53192484,69618.0,69617.0,0.024624]
[1730554519070,0.53192484,69618.0,69584.0,0.21504697]
[1730554519071,0.19640751,69610.0,69584.0,0.21504697]
[1730554519267,0.19640751,69610.0,69583.0,0.02429554]
[1730554519268,0.100597,69584.0,69583.0,0.001626]
[1730554519473,0.44419586,69584.0,69583.0,0.001626]
[1730554519671,0.46392468,69584.0,69583.0,0.001626]
[1730554519889,0.47735779,69584.0,69583.0,0.001626]
[1730554520061,0.26694766,69574.0,69573.0,4.972e-05]
[1730554520270,0.78409191,69574.0,69573.0,4.972e-05]
[1730554520475,0.6087036,69574.0,69573.0,4.972e-05]
[1730554520706,0.100616,69571.0,69570.0,0.001626]
[1730554520941,0.44239832,69571.0,69570.0,0.001626]
[1730554521154,0.55220071,69571.0,69570.0,0.001626]
[1730554521370,0.100622,69567.0,69566.0,0.001624]
[1730554521619,0.100622,69567.0,69548.0,4.972e-05]
[1730554521620,0.54301248,69567.0,69548.0,4.972e-05]
[1730554521829,0.100639,69555.0,69554.0,0.21508923]
[1730554522063,0.34008421,69555.0,69553.0,0.002]
[1730554522268,0.28139517,69554.0,69549.0,0.13845525]
[1730554522480,0.16633566,69551.0,69549.0,0.13845525]
[1730554522689,0.37494172,69550.0,69549.0,0.13845525]
[1730554523599,0.47537219,69550.0,69549.0,0.13845525]
[1730554523804,0.56464673,69550.0,69549.0,0.13845525]
[1730554524013,0.56464673,69550.0,69547.0,0.001626]
[1730554524014,0.100649,69548.0,69547.0,0.001626]
[1730554524225,0.12298796,69548.0,69547.0,0.001626]
[1730554524425,0.45386571,69548.0,69547.0,0.001626]
[1730554524662,0.5758695,69548.0,69528.0,0.005]
[1730554524868,0.5758695,69548.0,69527.0,0.0819]
[1730554524869,0.10066,69541.0,69538.0,0.002]
[1730554525079,0.18716704,69547.0,69538.0,0.13845525]
[1730554525080,0.0873855,69540.0,69538.0,0.13845525]
[1730554525284,0.11868979,69539.0,69538.0,0.13845525]
[1730554525485,0.12768263,69539.0,69538.0,0.13845525]
[1730554525637,0.41486763,69539.0,69529.0,0.102]
[1730554525851,0.100665,69537.0,69531.0,0.1]
[1730554526066,0.3745705,69536.0,69533.0,0.1]
[1730554526300,0.3745705,69536.0,69534.0,0.13845525]
[1730554526301,0.0873855,69535.0,69534.0,0.13845525]
[1730554526470,0.3745705,69535.0,69534.0,0.13845525]
[1730554526679,0.42725592,69535.0,69534.0,0.13845525]
[1730554527259,0.42702904,69535.0,69534.0,0.13845525]
[1730554527876,0.42702904,69535.0,69528.0,0.002822]
[1730554528275,0.34087042,69535.0,69534.0,0.14445525]
[1730554528508,0.4279351,69535.0,69534.0,0.14645525]
[1730554528728,0.4279351,69535.0,69534.0,0.14045525]
[1730554528729,0.4269351,69535.0,69534.0,0.14045525]
[1730554529154,0.46777714,69535.0,69534.0,0.13845525]
[1730554529809,0.46877714,69535.0,69534.0,0.14645525]
[1730554530451,0.46877714,69535.0,69534.0,0.008]
[1730554530452,0.7347808,69535.0,69534.0,0.008]
[1730554530661,0.7347808,69535.0,69534.0,0.014]
[1730554530662,0.7357808,69535.0,69534.0,0.014]
[1730554530875,0.73571709,69535.0,69534.0,0.014]
[1730554531137,0.63504909,69535.0,69528.0,0.000822]
[1730554531380,0.26701266,69529.0,69528.0,0.000822]
[1730554531589,0.3937845,69529.0,69528.0,0.000822]
[1730554531809,0.3937845,69529.0,69520.0,0.0183872]
[1730554531810,0.41395684,69529.0,69516.0,0.21508923]
[1730554532024,0.12677184,69528.0,69516.0,0.35354448]
[1730554532211,0.100683,69525.0,69516.0,0.13845525]
[1730554532464,0.12677184,69527.0,69516.0,0.13845525]
[1730554532465,0.387865,69527.0,69524.0,0.002]
[1730554532687,0.201351,69531.0,69523.0,0.002]
[1730554532688,0.287185,69524.0,69523.0,0.002]
[1730554532896,0.41372622,69524.0,69522.0,0.002]
[1730554533116,0.12654122,69523.0,69522.0,0.002]
[1730554533329,0.41372622,69523.0,69516.0,0.14045525]
[1730554533578,0.10069,69520.0,69516.0,0.13845525]
[1730554533777,0.41372622,69519.0,69516.0,0.001]
[1730554533984,0.201389,69517.0,69513.0,0.00193507]
[1730554534206,0.100699,69515.0,69514.0,0.002]
[1730554534440,0.12654122,69516.0,69508.0,0.06886359]
[1730554534441,0.41372622,69516.0,69508.0,0.06886359]
[1730554534653,0.4717037,69515.0,69509.0,0.13845525]
[1730554534862,0.12651519,69514.0,69511.0,0.100703]
[1730554535091,0.39253695,69513.0,69512.0,0.13845525]
[1730554535298,0.41370019,69513.0,69512.0,0.13845525]
[1730554535514,0.41370019,69513.0,69512.0,0.23915725]
[1730554535740,0.41535857,69513.0,69512.0,0.13845525]
[1730554535992,0.37398855,69513.0,69512.0,0.23915725]
[1730554536223,0.37398855,69513.0,69512.0,0.13845525]
[1730554536445,0.37398855,69513.0,69512.0,0.23915725]
[1730554536663,0.37498855,69513.0,69512.0,0.24115725]
[1730554537082,0.37498855,69513.0,69512.0,0.13845525]
[1730554537304,0.37598855,69513.0,69512.0,0.14045525]
[1730554537517,0.37598855,69513.0,69512.0,0.24115725]
[1730554537923,0.37598855,69513.0,69512.0,0.24415725]
[1730554538145,0.33257207,69513.0,69512.0,0.24415725]
[1730554538375,0.37594958,69513.0,69512.0,0.24415725]
[1730554538869,0.37594958,69513.0,69512.0,0.24498025]
[1730554539342,0.37594958,69513.0,69512.0,0.14427825]
[1730554539343,0.41574916,69513.0,69512.0,0.14427825]
[1730554539789,0.41574916,69513.0,69512.0,0.005823]
[1730554540225,0.41574916,69513.0,69512.0,0.106525]
[1730554540226,0.37594958,69513.0,69512.0,0.106525]
[1730554540697,0.37594958,69513.0,69512.0,0.41131591]
[1730554540929,0.39801972,69513.0,69512.0,0.50831591]
[1730554541133,0.37594958,69513.0,69512.0,0.61291591]
[1730554541407,0.37594958,69513.0,69512.0,0.61891591]
[1730554541631,0.39803086,69513.0,69512.0,0.61891591]
[1730554541830,0.37600345,69513.0,69512.0,0.61291591]
[1730554542061,0.37400345,69513.0,69512.0,0.44458025]
[1730554542265,0.37400345,69513.0,69512.0,0.45258025]
[1730554542503,0.37400345,69513.0,69512.0,0.42958025]
[1730554542724,0.37400345,69513.0,69512.0,0.32587825]
[1730554542961,0.37500345,69513.0,69512.0,0.32887825]
[1730554543179,0.37500345,69513.0,69512.0,0.24727825]
[1730554543387,0.37400345,69513.0,69512.0,0.24427825]
[1730554543637,0.37400345,69513.0,69512.0,0.24227825]
[1730554543849,0.37400345,69513.0,69512.0,0.24327825]
[1730554544276,0.37400345,69513.0,69512.0,0.33998025]
[1730554544697,0.39650797,69513.0,69512.0,0.23927825]
[1730554544931,0.37400345,69513.0,69512.0,0.34398025]
[1730554545372,0.288185,69513.0,69512.0,0.206702]
[1730554545608,0.37431638,69513.0,69512.0,0.200702]
[1730554545832,0.37431846,69513.0,69512.0,0.200702]
[1730554546056,0.37431846,69513.0,69512.0,0.202702]
[1730554546279,0.37431846,69513.0,69512.0,0.200702]
[1730554546514,0.37431846,69513.0,69512.0,0.206702]
[1730554546721,0.37531846,69513.0,69512.0,0.206702]
[1730554546920,0.37531846,69513.0,69512.0,0.200702]
[1730554547130,0.37531846,69513.0,69512.0,0.201702]
[1730554547347,0.41532119,69513.0,69512.0,0.203702]
[1730554547757,0.41532119,69513.0,69512.0,0.202702]
[1730554547978,0.41532119,69513.0,69512.0,0.206702]
[1730554548209,0.37531846,69513.0,69512.0,0.34515725]
[1730554548448,0.41541307,69513.0,69512.0,0.36815725]
[1730554548663,0.41541307,69513.0,69512.0,0.36915725]
[1730554548664,0.37531846,69513.0,69512.0,0.36915725]
[1730554548963,0.37531846,69513.0,69512.0,0.37015725]
[1730554549189,0.37449351,69513.0,69512.0,0.36815725]
[1730554549431,0.37449351,69513.0,69512.0,0.27415725]
[1730554549643,0.37549351,69513.0,69512.0,0.27415725]
[1730554549857,0.37549351,69513.0,69512.0,0.26815725]
[1730554550081,0.37549351,69513.0,69512.0,0.27015725]
[1730554550335,0.37549351,69513.0,69512.0,0.26915725]
[1730554550562,0.42641063,69513.0,69512.0,0.27098025]
[1730554550778,0.37549351,69513.0,69512.0,0.27098025]
[1730554551228,0.37549351,69513.0,69512.0,0.44598025]
[1730554551449,0.37549351,69513.0,69512.0,0.54598025]
[1730554552572,0.37580453,69513.0,69512.0,0.54598025]
[1730554552974,0.39715505,69513.0,69512.0,0.54398025]
[1730554553223,0.37480453,69513.0,69512.0,0.54398025]
[1730554553438,0.37480453,69513.0,69512.0,0.55098025]
[1730554553439,0.37580453,69513.0,69512.0,0.55098025]
[1730554553637,0.37580453,69513.0,69512.0,0.55498025]
[1730554554094,0.37580453,69513.0,69512.0,0.55098025]
[1730554554300,0.37580453,69513.0,69512.0,0.5554864]
[1730554554529,0.39917435,69513.0,69512.0,0.5674864]